[Event "45th FIDE Womens Olympiad 2024"]
[Site "Budapest"]
[Date "2024.09.19"]
[Round "8.26"]
[White "Munguntuul, Batkhuyag"]
[Black "Mkrtchyan, Mariam"]
[Result "1/2-1/2"]
[ECO "C86"]
[WhiteElo "2346"]
[BlackElo "2328"]
[Annotator "TA"]
[PlyCount "148"]
[EventDate "2024.09.05"]
[EventType "team-tourn"]
[EventCountry "HUN"]
[SourceTitle "playchess.com"]
[Source "ChessBase"]
[SourceQuality "1"]
[WhiteTeam "Mongolia"]
[BlackTeam "Armenia"]
[WhiteTeamCountry "MGL"]
[BlackTeamCountry "ARM"]
[TimeControl "40/5400+30:1800+30"]

{[%evp 54,148,7,6,10,9,22,16,26,23,39,22,20,27,20,27,19,15,14,16,18,14,19,0,3,0,0,0,0,0,0,0,29,18,31,18,36,32,33,31,41,41,34,28,25,35,72,72,72,72,72,72,72,72,97,82,103,69,132,110,110,110,110,127,430,400,332,216,7468,7468,7468,8,8,8,8,8,8,8,8,8,8,8,8,0,0,0,0,0,0,0,0,0,0,0,0,0,0]} 1. e4 {[%emt 0:00:01]} e5 {[%emt 0:00:03]} 2. Nf3 {[%emt 0:00:06]} Nc6 {[%emt 0:00:02]} 3. Bb5 {[%emt 0:00:06]} a6 {[%emt 0:00:03]} 4. Ba4 {[%emt 0:00:09]} Nf6 {[%emt 0:00:04]} 5. Qe2 {[%emt 0:00:03]} Be7 {[%emt 0:10:37]} 6. c3 {[%emt 0:01:59]} b5 {[%emt 0:00:23]} 7. Bb3 {[%emt 0:03:31]} d6 {[%emt 0:00:22]} 8. O-O {[%emt 0:00:09]} O-O {[%emt 0:02:27]} 9. Rd1 {[%emt 0:00:45]} Na5 {[%emt 0:00:36]} 10. Bc2 {[%emt 0:00:10]} c5 {[%emt 0:00:09]} 11. d4 {[%emt 0:00:58]} Qc7 {[%emt 0:00:04]} 12. d5 {[%emt 0:00:40]} Bd7 {[%emt 0:07:47]} 13. b3 {[%emt 0:02:22] C86: Closed Ruy Lopez: Worrall Attack.} Nb7 {[%emt 0:03:21]} 14. Nbd2 {[%emt 0:12:05]} Ne8 {[%emt 0:03:39]} 15. Nf1 {[%emt 0:13:19]} g6 {[%emt 0:00:17]} 16. Bh6 {[%emt 0:00:12]} Ng7 {[%emt 0:00:02]} 17. Ne3 {[%emt 0:01:21]} f6 {[%emt 0:10:01]} 18. a4 $146 {[%emt 0:02:42]} ({Predecessor:} 18. Rf1 Nd8 19. Nd2 Nf7 20. Bxg7 Kxg7 21. Bd3 Rab8 22. Kh1 Qc8 23. a4 c4 24. bxc4 bxa4 {½-½ Boruchovsky,A (2159)-Lerner,K (2530) Kefar Sava schev 2010 (3)}) 18... Rfb8 {[%emt 0:01:59]} 19. Bxg7 {[%emt 0:09:11]} Kxg7 {[%emt 0:01:30]} 20. h3 {[%emt 0:00:36]} Nd8 {[%emt 0:10:34]} 21. Ra2 {[%emt 0:02:10]} Ra7 {[%emt 0:06:06]} 22. Rda1 {[%emt 0:03:46]} Rba8 {[%emt 0:01:43]} 23. Ne1 {[%emt 0:14:40]} Qb8 {[%emt 0:17:25]} 24. Nd3 {[%emt 0:02:10]} Nf7 {[%emt 0:01:01]} 25. Kh2 {[%emt 0:08:20]} Bd8 {[%emt 0:02:39]} 26. Nc1 {[%emt 0:01:40]} Bb6 {[%emt 0:01:17]} 27. Qd2 {[%emt 0:06:25]} Qe8 {[%emt 0:09:38]} 28. Ne2 {[%emt 0:00:27]} Qe7 {[%emt 0:00:18]} 29. Ng3 {[%emt 0:00:36]} Kh8 {[%emt 0:00:51]} 30. Bd1 {[%emt 0:00:45]} Qf8 {[%emt 0:02:59]} 31. Bg4 {[%emt 0:04:30]} Be8 {[%emt 0:01:04]} 32. axb5 {[%emt 0:02:31]} axb5 {[%emt 0:00:28]} 33. Rxa7 {[%emt 0:00:02]} Rxa7 {[%emt 0:00:03]} 34. Rxa7 {[%emt 0:00:06]} Bxa7 {[%emt 0:00:01]} 35. Qa2 {[%emt 0:00:08]} Qe7 {[%emt 0:00:04]} 36. Qa6 {[%emt 0:00:41]} Qc7 {[%emt 0:01:52]} 37. Be2 {[%emt 0:01:34]} Qb8 {[%emt 0:03:10]} 38. Nc2 {[%emt 0:00:53]} Kg8 {[%emt 0:01:38]} 39. f3 {[%emt 0:04:11]} Kf8 {[%emt 0:01:55]} 40. Nf1 {[%emt 0:00:31]} Qb6 {[%emt 0:01:36]} 41. Qxb6 $1 {[%emt 0:32:46]} Bxb6 {[%emt 0:30:03]} 42. Na3 {[%emt 0:00:00]} Ba5 {[%emt 0:00:00]} 43. Bxb5 {[%emt 0:00:00]} Bxc3 {[%emt 0:00:00]} 44. Ne3 {[%emt 0:00:00]} Bb4 {[%emt 0:00:00]} 45. Bxe8 {[%emt 0:00:00]} Kxe8 {[%emt 0:00:00]} 46. Nb5 {[%emt 0:00:00]} h5 {[%emt 0:00:00]} 47. h4 {[%emt 0:00:00]} Kd7 {[%emt 0:00:00]} 48. g4 {[%emt 0:00:00]} Bd2 {[%emt 0:00:00]} 49. Nc4 {[%emt 0:00:00]} Bh6 {[%emt 0:00:00]} 50. Kg2 {[%emt 0:00:00]} Bf4 {[%emt 0:00:00]} 51. Kh3 {[%emt 0:00:00]} Ke7 {[%emt 0:00:00]} 52. Nc3 {[%emt 0:00:00]} Nd8 {[%emt 0:01:27]} 53. Ne2 {[%emt 0:00:00]} Nb7 {[%emt 0:00:01]} 54. Kg2 {[%emt 0:00:00]} Kf7 {[%emt 0:00:47]} 55. Kf2 {[%emt 0:00:00]} Kg7 {[%emt 0:02:13]} (55... Ke7 $14 56. gxh5 gxh5 57. Nxf4 exf4) 56. gxh5 $16 {[%emt 0:00:00]} gxh5 {[%emt 0:00:01]} 57. Nxf4 {[%emt 0:00:00]} exf4 {[%emt 0:00:01]} 58. Ke2 {[%emt 0:00:00]} f5 $2 {[%emt 0:01:20][%mdl 8192] [#]} (58... Kf7 $16 59. Kd3 Ke7) 59. e5 $1 $18 {[%emt 0:00:00]} ({Weaker is} 59. exf5 Kf6 $11) 59... dxe5 {[%emt 0:00:03]} 60. Nxe5 {[%emt 0:00:00]} Na5 $2 {[%emt 0:00:10]} (60... Kf6 61. Nd3 Ke7 62. Nxf4 Kd6) 61. Kd3 $18 {[%emt 0:01:12]} Nxb3 {[%emt 0:01:12]} 62. Kc4 $2 {[%emt 0:00:01]} ({White has to play} 62. d6 $18 {White threatens d7 and mate.} Kf6 63. d7) 62... Kf6 $1 $11 {[%emt 0:01:10]} 63. Nd3 {[%emt 0:01:09]} Nd2+ {[%emt 0:00:36]} 64. Kxc5 {[%emt 0:00:03]} Nxf3 {[%emt 0:00:49]} 65. d6 {[%emt 0:03:28]} Ke6 {[%emt 0:00:03]} 66. Nxf4+ {[%emt 0:00:14]} (66. Kc6 $5 Nd4+ $8 67. Kc5 Nb3+ 68. Kc6 Nd4+ 69. Kc5 Nb3+ 70. Kb4 $11) 66... Kd7 {[%emt 0:00:06]} 67. Ng6 {[%emt 0:00:32]} Ke6 {[%emt 0:01:07]} 68. Nf4+ {[%emt 0:06:11]} (68. Kc6 $5 Nd4+ $8 69. Kc5 Nb3+ 70. Kc4 Na5+ 71. Kd3 $11) 68... Kd7 {[%emt 0:00:03]} 69. Kd5 {[%emt 0:00:27]} (69. Nd3 $5 Ke6 $8 70. Nf4+ $11) 69... Nxh4 {[%emt 0:00:51]} 70. Nxh5 {[%emt 0:00:07]} (70. Kc5 $5) 70... Ng6 {[%emt 0:00:32]} 71. Nf6+ {[%emt 0:00:20]} Kd8 {[%emt 0:00:03]} 72. Kd4 {[%emt 0:00:35]} Nf8 {[%emt 0:00:47]} 73. Ke5 {[%emt 0:00:58]} Nd7+ {[%emt 0:00:09]} 74. Kxf5 {[%emt 0:00:01]} Nxf6 {[%emt 0:00:37]} 1/2-1/2

[Event "45th FIDE Womens Olympiad 2024"]
[Site "Budapest"]
[Date "2024.09.19"]
[Round "8.27"]
[White "Danielian, Elina"]
[Black "Nomin-Erdene, Davaademberel"]
[Result "1-0"]
[ECO "D37"]
[WhiteElo "2393"]
[BlackElo "2319"]
[Annotator "TA"]
[PlyCount "122"]
[EventDate "2024.09.05"]
[EventType "team-tourn"]
[EventCountry "HUN"]
[SourceTitle "playchess.com"]
[Source "ChessBase"]
[SourceQuality "1"]
[WhiteTeam "Armenia"]
[BlackTeam "Mongolia"]
[WhiteTeamCountry "ARM"]
[BlackTeamCountry "MGL"]
[TimeControl "40/5400+30:1800+30"]

{[%evp 33,122,-12,22,0,0,-35,1,-56,-41,-43,-54,-45,-50,-103,-64,-72,-47,-58,-60,-74,-68,-56,-49,-61,-57,-78,-9,-13,-20,-13,-25,-27,0,-7,1,-25,0,0,0,-10,0,0,0,0,0,0,0,0,0,0,0,0,0,0,0,0,8,8,8,8,14,14,20,19,22,27,83,68,146,144,158,149,168,175,170,93,100,96,281,276,310,268,378,356,327,50,50,0,0,0,0]} 1. Nf3 {[%emt 0:00:05]} d5 {[%emt 0:00:05]} 2. d4 {[%emt 0:00:23]} Nf6 {[%emt 0:00:06]} 3. c4 {[%emt 0:00:07]} e6 {[%emt 0:00:06]} 4. Nc3 {[%emt 0:01:30]} Nbd7 {[%emt 0:01:14]} 5. Qc2 {[%emt 0:04:35]} dxc4 {[%emt 0:00:37]} 6. e4 {[%emt 0:00:05] D37: Queen's Gambit Declined: 5 Bf4.} c5 {[%emt 0:00:06]} 7. Bxc4 {[%emt 0:02:56]} cxd4 {[%emt 0:05:57]} 8. Nxd4 {[%emt 0:00:23]} Bc5 {[%emt 0:09:33]} 9. Nf3 {[%emt 0:08:38]} Qc7 {[%emt 0:00:25]} 10. Nb5 {[%emt 0:10:33]} Qb8 {[%emt 0:00:15]} 11. O-O {[%emt 0:09:45]} a6 {[%emt 0:00:06]} 12. Nbd4 {[%emt 0:01:28]} Bxd4 $146 {[%emt 0:17:28]} ({Predecessor:} 12... O-O 13. Bxe6 Bxd4 14. Bxd7 Bxd7 15. Nxd4 Qe5 16. Be3 Rac8 17. Qd3 Qxe4 18. Qxe4 Nxe4 19. Rac1 {½-½ Lalic,B (2585)-Parker,J (2495) Drury Lane London 1997 (2)}) 13. Nxd4 {[%emt 0:00:05]} Qe5 {[%emt 0:00:04]} 14. Nf3 {[%emt 0:05:33]} Qxe4 {[%emt 0:02:21]} 15. Bd3 {[%emt 0:00:22]} Qg4 {[%emt 0:05:07]} 16. b3 {[%emt 0:03:51]} O-O {[%emt 0:05:52]} 17. Rd1 {[%emt 0:07:42]} b6 {[%emt 0:08:57]} 18. h3 {[%emt 0:06:42]} Qh5 {[%emt 0:00:43]} 19. Be2 {[%emt 0:04:13]} Qc5 {[%emt 0:03:59]} 20. Qb2 {[%emt 0:03:14]} (20. Qxc5 $11 bxc5 21. Bb2) 20... Nd5 {[%emt 0:03:26]} 21. Bd2 {[%emt 0:01:17]} Bb7 {[%emt 0:00:22]} 22. Rac1 {[%emt 0:00:08]} Qe7 {[%emt 0:00:39]} 23. Rc4 {[%emt 0:00:09]} ({White should try} 23. Ne5 $15) 23... Rac8 {[%emt 0:02:39]} 24. Rg4 {[%emt 0:04:16]} f5 {[%emt 0:02:38]} 25. Rd4 {[%emt 0:02:06]} Qf6 {[%emt 0:07:14]} 26. Bg5 {[%emt 0:05:04]} Qg6 {[%emt 0:04:23]} 27. Qd2 {[%emt 0:00:25]} h6 {[%emt 0:01:04]} 28. Be7 {[%emt 0:00:50]} Rfe8 $1 {[%emt 0:01:39]} 29. Ba3 {[%emt 0:00:17]} N7f6 {[%emt 0:04:48]} (29... b5 $17) 30. Ne5 $11 {[%emt 0:12:02]} Qg5 {[%emt 0:00:06]} 31. Qxg5 {[%emt 0:00:06]} hxg5 {[%emt 0:00:03]} 32. Bf3 {[%emt 0:00:11]} b5 {[%emt 0:06:54]} 33. Bc1 {[%emt 0:00:30]} f4 {[%emt 0:01:11]} 34. g3 {[%emt 0:02:23]} Rc3 {[%emt 0:01:07]} 35. gxf4 {[%emt 0:00:59]} gxf4 {[%emt 0:00:51]} (35... Rxf3 {simplifies} 36. Nxf3 Nxf4 37. Bxf4 Bxf3 38. Bxg5 Bxd1 39. Rxd1 Nd5) 36. Bxf4 {[%emt 0:02:57]} Rxf3 {[%emt 0:05:32]} 37. Nxf3 {[%emt 0:00:01]} Nxf4 {[%emt 0:00:43]} 38. Rxf4 {[%emt 0:00:09]} Nh5 $1 {[%emt 0:00:13]} 39. Rd7 {[%emt 0:01:51]} Nxf4 {[%emt 0:00:52]} 40. Rxb7 {[%emt 0:00:04]} Nxh3+ {[%emt 0:00:05]} 41. Kg2 {[%emt 0:30:28]} Nf4+ {[%emt 0:30:06]} 42. Kg3 {[%emt 0:00:08]} Ne2+ {[%emt 0:01:16]} 43. Kg2 {[%emt 0:01:08]} Nc3 {[%emt 0:00:00]} 44. a3 {[%emt 0:00:00]} Ra8 {[%emt 0:00:00]} 45. Ng5 {[%emt 0:00:00]} e5 {[%emt 0:01:03]} 46. Ne6 {[%emt 0:00:00]} a5 {[%emt 0:01:01]} 47. Rxg7+ {[%emt 0:00:00]} Kh8 {[%emt 0:00:01]} 48. Rc7 {[%emt 0:00:00]} Nb1 {[%emt 0:00:19]} 49. a4 {[%emt 0:00:00]} b4 {[%emt 0:00:01]} (49... bxa4 $11 50. bxa4 Nd2) 50. Rd7 $16 {[%emt 0:00:00]} Nc3 {[%emt 0:01:08]} (50... Re8 $1 $14 51. Nc7 Rf8) 51. Kf3 $16 {[%emt 0:00:00]} Ra6 {[%emt 0:00:29]} 52. Nc5 $1 {[%emt 0:00:00]} Rc6 {[%emt 0:00:53] [#]} 53. Ne4 $1 {[%emt 0:00:46]} Kg8 {[%emt 0:00:01]} 54. Ke3 {[%emt 0:02:04]} (54. Ra7 $18) 54... Kf8 $16 {[%emt 0:00:51] [#]} 55. f3 $1 {[%emt 0:01:04]} Kg8 $2 {[%emt 0:00:48]} (55... Rc8 $16) 56. Ra7 $18 {[%emt 0:01:11]} Nxe4 {[%emt 0:00:17]} 57. Kxe4 {[%emt 0:00:04]} Rc3 {[%emt 0:00:02]} (57... Rc5 {was necessary.} 58. Rd7 Rc1) 58. Rxa5 $18 {[%emt 0:00:07]} (58. Kxe5 Rxf3 59. Rxa5 Rxb3 $11) 58... Rxb3 {[%emt 0:00:12]} 59. Rb5 $2 {[%emt 0:01:42]} ({Worse is} 59. Kxe5 Rxf3 60. Rb5 Ra3 $11) (59. Rxe5 $18 {a5 is the strong threat.} Ra3 60. a5) 59... Kf7 $1 $14 {[%emt 0:00:53]} 60. Kxe5 {[%emt 0:00:11]} (60. a5 $14) 60... Rxf3 $11 {[%emt 0:00:04]} 61. Kd6 {[%emt 0:00:52]} b3 {[%emt 0:01:35]} 1-0

[Event "45th FIDE Womens Olympiad 2024"]
[Site "Budapest"]
[Date "2024.09.19"]
[Round "8.27"]
[White "Hussin, Fazreena"]
[Black "Majid, Zara"]
[Result "0-1"]
[ECO "B07"]
[WhiteElo "1700"]
[BlackElo "1411"]
[PlyCount "81"]
[EventDate "2024.09.05"]
[EventType "team-tourn"]
[EventCountry "HUN"]
[WhiteTeam "Brunei Darussalam"]
[BlackTeam "Cayman Islands"]
[WhiteTeamCountry "BRN"]
[BlackTeamCountry "CAY"]
[TimeControl "40/5400+30:1800+30"]

1. e4 d6 2. d4 Nf6 3. Nc3 g6 4. f3 Bg7 5. Be3 Nbd7 6. Qd2 O-O 7. O-O-O e5 8. Nge2 Nb6 9. Kb1 Nc4 10. Qc1 Nxe3 11. Qxe3 Nd7 12. g4 Nb6 13. h4 Qe7 14. d5 f5 15. gxf5 gxf5 16. h5 h6 17. Qg1 Qg5 18. Qh2 Kh7 19. Bh3 fxe4 20. Nxe4 Qxh5 21. Bxc8 Qxh2 22. Rxh2 Raxc8 23. Rf1 Nxd5 24. Rh3 Nf4 25. Nxf4 Rxf4 26. c4 b6 27. b3 Kg8 28. Kc2 Kf7 29. Kd3 Ke6 30. Ke3 Rh8 31. Rfh1 Rhf8 32. Rf1 c6 33. Ke2 d5 34. cxd5+ cxd5 35. Nd2 Rc8 36. Rg1 Kf6 37. Rhg3 Bf8 38. Rg6+ Kf7 39. Rg8 Rc2 40. a4 Rd4 41. Rf1 {0-} 0-1

[Event "45th FIDE Womens Olympiad 2024"]
[Site "Budapest"]
[Date "2024.09.19"]
[Round "8.28"]
[White "Khuslen, Erdenebayar"]
[Black "Sargsyan, Anna M."]
[Result "0-1"]
[ECO "E48"]
[WhiteElo "2229"]
[BlackElo "2364"]
[Annotator "TA"]
[PlyCount "52"]
[EventDate "2024.09.05"]
[EventType "team-tourn"]
[EventCountry "HUN"]
[SourceTitle "playchess.com"]
[Source "ChessBase"]
[SourceQuality "1"]
[WhiteTeam "Mongolia"]
[BlackTeam "Armenia"]
[WhiteTeamCountry "MGL"]
[BlackTeamCountry "ARM"]
[TimeControl "40/5400+30:1800+30"]

{[%evp 11,52,2,7,11,21,0,27,0,0,0,0,-9,-9,-22,0,0,0,-124,-128,-126,-95,-150,-158,-139,-147,-158,-160,-522,-580,-1041,-1081,-1977,-833,-819,-683,-5814,-932,-29943,-1559,-29991,-29992,-29998,-29999]} 1. d4 {[%emt 0:00:03]} Nf6 {[%emt 0:00:04]} 2. c4 {[%emt 0:00:30]} e6 {[%emt 0:00:03]} 3. Nc3 {[%emt 0:00:30]} Bb4 {[%emt 0:00:06]} 4. e3 {[%emt 0:00:35]} O-O {[%emt 0:00:21]} 5. Bd3 {[%emt 0:00:33]} Re8 {[%emt 0:00:03]} 6. Nge2 {[%emt 0:01:30]} d5 {[%emt 0:03:51]} 7. O-O {[%emt 0:01:56]} Bf8 {[%emt 0:01:03]} 8. Nf4 {[%emt 0:05:32]} Nc6 {[%emt 0:22:03]} 9. a3 {[%emt 0:05:38] White has an edge.} dxc4 {[%emt 0:04:34]} 10. Bxc4 {[%emt 0:00:39]} e5 {[%emt 0:01:11]} 11. dxe5 {[%emt 0:13:44]} Nxe5 {[%emt 0:00:40]} 12. Ba2 {[%emt 0:02:24]} c6 {[%emt 0:01:14]} 13. Qc2 {[%emt 0:06:18]} Bd6 {[%emt 0:13:31]} 14. h3 {[%emt 0:06:47] [#]} (14. Kh1 $11) 14... g5 $1 $17 {[%emt 0:06:01]} 15. Nfe2 {[%emt 0:06:30] [#]} g4 $1 {[%emt 0:00:58]} 16. hxg4 {[%emt 0:11:03]} (16. Ng3 $142) 16... Nfxg4 {[%emt 0:07:23]} (16... Nexg4 17. Nf4 $15) (16... Bxg4 17. f3 Be6 18. Bxe6 fxe6 19. g3 $14) 17. g3 {[%emt 0:02:35] Repels Qh4} Nf3+ {[%emt 0:04:09]} 18. Kg2 {[%emt 0:01:42]} Qf6 {[%emt 0:05:45] Dancing on a razor blade. Black is much more active.} 19. Ne4 $2 {[%emt 0:21:08]} (19. Nd4 $17 Ngh2 (19... Nxd4 20. exd4 Bf5 21. Qd1 $17) 20. Bb1 (20. Ne4 $2 Qh6 $19)) 19... Qh6 $19 {[%emt 0:15:51]} 20. Ng1 {[%emt 0:09:18] Dodges Qh3+} Nxg1 {[%emt 0:01:15]} 21. Rxg1 {[%emt 0:00:13]} Bf5 {[%emt 0:02:28]} (21... Qh2+ $142 22. Kf1 Rxe4) 22. Bxf7+ {[%emt 0:00:28]} Kf8 {[%emt 0:00:23]} 23. Bxe8 {[%emt 0:00:48]} Rxe8 {[%emt 0:00:05]} (23... Qh2+ $142 24. Kf3 Rxe8 (24... Qxg1 $2 25. Bd2 $19)) 24. Kf1 {[%emt 0:01:07]} Bxe4 {[%emt 0:00:11] White is weak on the light squares} 25. Qc3 {[%emt 0:00:48]} Qh2 {[%emt 0:01:07][%csl Gg4][%cal Rh2f2]} 26. Qd2 {[%emt 0:00:40] [#]} Bd3+ $1 {[%emt 0:00:03][%mdl 512] Weighted Error Value: White=1.47/Black=0.50.  Loses game:     	White=1     	---        Mistake:       	White=2     	---        Inaccurate:     	White=3     	Black=1      OK:         	White=3     	Black=6      Best:        	White=1     	Black=1      Strong:       	---       	Black=2} 0-1

[Event "45th FIDE Womens Olympiad 2024"]
[Site "Budapest"]
[Date "2024.09.19"]
[Round "8.28"]
[White "Patil, Anvita Niranjan"]
[Black "Zakaria, Liyana"]
[Result "0-1"]
[ECO "B07"]
[WhiteElo "1589"]
[BlackElo "1520"]
[PlyCount "176"]
[EventDate "2024.09.05"]
[EventType "team-tourn"]
[EventCountry "HUN"]
[WhiteTeam "Cayman Islands"]
[BlackTeam "Brunei Darussalam"]
[WhiteTeamCountry "CAY"]
[BlackTeamCountry "BRN"]
[TimeControl "40/5400+30:1800+30"]

1. e4 d6 2. d4 Nf6 3. Bd3 Nbd7 4. Nf3 e5 5. O-O c6 6. c3 Qc7 7. Re1 Be7 8. Be3 h6 9. Qb3 b5 10. Nbd2 Nf8 11. Nf1 g5 12. N3d2 Ng6 13. d5 Nf4 14. Bxf4 gxf4 15. dxc6 a6 16. c4 Be6 17. Rec1 Rg8 18. Qd1 Bh3 19. g3 Bxf1 20. Bxf1 fxg3 21. hxg3 Qb6 22. Qf3 Rc8 23. cxb5 axb5 24. Qe3 Qxe3 25. fxe3 Rxg3+ 26. Kf2 Rg5 27. Bxb5 Rc7 28. a4 d5 29. a5 Bb4 30. Nf3 Nxe4+ 31. Ke2 Rg2+ 32. Kf1 Rf2+ 33. Kg1 Rxf3 34. a6 Bc5 35. Kg2 Rg3+ 36. Kf1 Bxe3 37. a7 Bxa7 38. Rxa7 Kd8 39. Ra3 Rg5 40. Ra8+ Ke7 41. Rb8 Nd6 42. Ba4 Rg4 43. Bd1 Rc4 44. Rxc4 Nxc4 45. Rb7 Kd6 46. Ba4 Nxb2 47. Rxb2 f5 48. Rh2 Rh7 49. Rf2 f4 50. Bc2 Rf7 51. Ba4 e4 52. Rh2 Rf6 53. Bb5 f3 54. Rd2 e3 55. Rh2 f2 56. Rh1 Rg6 57. Ba4 d4 58. Bc2 Rg1+ 59. Rxg1 fxg1=Q+ 60. Kxg1 Kxc6 61. Kf1 Kc5 62. Ke2 Kc4 63. Bd3+ Kc3 64. Be4 h5 65. Bd3 h4 66. Bf5 Kc4 67. Bd3+ Kd5 68. Kf3 Kc5 69. Bf1 Kb4 70. Ke2 Kc3 71. Kf3 Kd2 72. Ke4 e2 73. Bxe2 Kxe2 74. Kxd4 h3 75. Ke4 h2 76. Ke5 h1=Q 77. Kd4 Qd1+ 78. Ke5 Ke3 79. Kf5 Qd4 80. Ke6 Ke4 81. Ke7 Kf5 82. Kf8 Qd6+ 83. Kf7 Qe6+ 84. Kf8 Qd6+ 85. Kf7 Qd7+ 86. Kf8 Ke6 87. Kg8 Kf6 88. Kh8 Qg7# {0-} 0-1

[Event "45th FIDE Womens Olympiad 2024"]
[Site "Budapest"]
[Date "2024.09.19"]
[Round "8.29"]
[White "Unuk, Laura"]
[Black "Zhu, Jiner"]
[Result "0-1"]
[ECO "A30"]
[WhiteElo "2316"]
[BlackElo "2487"]
[Annotator "TA"]
[PlyCount "64"]
[EventDate "2024.09.05"]
[EventType "team-tourn"]
[EventCountry "HUN"]
[SourceTitle "playchess.com"]
[Source "ChessBase"]
[SourceQuality "1"]
[WhiteTeam "Slovenia"]
[BlackTeam "China"]
[WhiteTeamCountry "SLO"]
[BlackTeamCountry "CHN"]
[TimeControl "40/5400+30:1800+30"]

{[%evp 16,64,30,18,25,0,4,0,0,-1,5,-4,25,16,10,-9,18,-1,55,-8,69,65,64,10,0,12,3,-13,-23,-107,-108,-249,-259,-327,-166,-183,-183,-159,-160,-199,-160,-289,-318,-360,-379,-508,-327,-335,-305,-756,-743]} 1. Nf3 {[%emt 0:00:05]} Nf6 {[%emt 0:00:09]} 2. g3 {[%emt 0:00:15]} b6 {[%emt 0:03:22]} 3. Bg2 {[%emt 0:05:44]} Bb7 {[%emt 0:00:08]} 4. O-O {[%emt 0:00:07]} e6 {[%emt 0:00:06]} 5. c4 {[%emt 0:02:02]} c5 {[%emt 0:00:09]} 6. b3 {[%emt 0:05:27]} Be7 {[%emt 0:07:52]} 7. Bb2 {[%emt 0:01:43]} O-O {[%emt 0:00:12]} 8. e3 {[%emt 0:05:07]} d6 {[%emt 0:06:55][%cal Bd7d6,Bd6d5][%mdl 32]} 9. Qe2 {[%emt 0:06:07]} Nbd7 {[%emt 0:00:44]} 10. Ne1 {[%emt 0:02:51]} Bxg2 {[%emt 0:02:38]} 11. Nxg2 {[%emt 0:01:23]} d5 {[%emt 0:00:35] The position is equal.} 12. f4 {[%emt 0:00:53]} a6 {[%emt 0:15:39]} 13. g4 {[%emt 0:07:29][%cal Bg3g4,Bg4g5][%mdl 32] [#]} b5 $1 {[%emt 0:04:49]} 14. g5 {[%emt 0:08:55]} Ne8 {[%emt 0:01:40]} 15. d3 {[%emt 0:03:14]} Nd6 {[%emt 0:07:19]} 16. Nd2 {[%emt 0:01:59]} f5 {[%emt 0:07:21]} (16... a5 $11) 17. e4 {[%emt 0:15:25]} (17. cxd5 $14 exd5 18. Rac1) 17... bxc4 {[%emt 0:00:39]} (17... fxe4 $11 18. Rad1 (18. dxe4 d4 $11) 18... bxc4 19. bxc4 d4 20. Nxe4 Re8) 18. exd5 {[%emt 0:02:25]} (18. bxc4 fxe4 19. cxd5 (19. dxe4 Rb8 $15) 19... exd5 20. dxe4 d4 $11) 18... exd5 {[%emt 0:00:16]} 19. Qe6+ {[%emt 0:03:26]} (19. Rae1 $14 Re8 20. Qe6+ (20. bxc4 Bf6 $11) 20... Kh8 21. Qxd5 (21. bxc4 d4 $16)) 19... Rf7 $11 {[%emt 0:06:25]} 20. Qxd5 {[%emt 0:05:13]} Nb6 {[%emt 0:02:35]} 21. Qe6 {[%emt 0:03:11]} (21. Qxc5 $2 Nb5 22. Qe5 c3 (22... cxd3 23. a4 $11) (22... Qxd3 23. Nxc4 Nxc4 24. bxc4 $15) 23. Bxc3 Bd6 $19 (23... Qxd3 24. Ba5 $16)) 21... cxd3 {[%emt 0:04:18][%cal Oc5c4]} 22. Rf3 {[%emt 0:00:19]} (22. Rad1 $11) 22... c4 $1 $17 {[%emt 0:05:24] Strongly threatening ...Qc8.} 23. bxc4 {[%emt 0:07:40] White does not recover from this.} (23. Ne3 $17) 23... Na4 $19 {[%emt 0:00:59]} 24. Bd4 {[%emt 0:02:00] [#]} Ne4 $1 {[%emt 0:01:42][%mdl 512]} 25. Nb3 {[%emt 0:00:50][%cal Oa1d1]} (25. Rxd3 $2 {perishes.} Nac5 26. Be3 Nxe6 $19) 25... Nac5 $36 {[%emt 0:03:26][%mdl 2048] Black is in control.} 26. Qe5 {[%emt 0:00:50][%cal Rb3c5] [#]} d2 $1 {[%emt 0:02:35] ...Bd6 would now be deadly. Chess con chili.} 27. Rd1 {[%emt 0:03:53]} (27. Ne3 Nd3) 27... Nxb3 {[%emt 0:00:13]} 28. Rxb3 {[%emt 0:01:11]} (28. axb3 $17 Bd6 29. Qe6) 28... Rc8 {[%emt 0:01:30]} 29. Ne3 {[%emt 0:00:32]} Bd6 {[%emt 0:00:33]} 30. Qe6 {[%emt 0:03:13]} Bc5 {[%emt 0:00:36]} 31. Bxc5 {[%emt 0:01:40]} Nxc5 {[%emt 0:00:06]} ({Not} 31... Rxc5 32. Nd5 Kf8 (32... Rxc4 $2 {is the wrong capture.} 33. Rb7 $18) 33. Qxa6 $11) 32. Rxd2 $2 {[%emt 0:00:22]} (32. Qd5 Nxb3 33. axb3 Qxd5 34. Nxd5) 32... Nxe6 {[%emt 0:00:17] Weighted Error Value: White=0.64/Black=0.27 (precise) .  Mistake:       	White=6     	Black=3      Inaccurate:     	White=1     	Black=3      OK:         	White=4     	Black=8      Best:        	---       	Black=4      Strong:       	---       	Black=1} 0-1

[Event "45th FIDE Womens Olympiad 2024"]
[Site "Budapest"]
[Date "2024.09.19"]
[Round "8.29"]
[White "Yavo Tchetche, Marie"]
[Black "Spinola, Divania"]
[Result "1-0"]
[ECO "D02"]
[WhiteElo "1686"]
[BlackElo "1583"]
[PlyCount "115"]
[EventDate "2024.09.05"]
[EventType "team-tourn"]
[EventCountry "HUN"]
[WhiteTeam "Cote d/^Ivoire"]
[BlackTeam "Cape Verde"]
[TimeControl "40/5400+30:1800+30"]

1. d4 d5 2. Nf3 Nf6 3. Bf4 Bf5 4. e3 h6 5. Bd3 Bd7 6. h3 e6 7. O-O Be7 8. Nbd2 O-O 9. c4 c5 10. Rc1 Na6 11. a3 Qa5 12. cxd5 exd5 13. Bxa6 Qxa6 14. dxc5 Rac8 15. b4 Ba4 16. Nb3 Rfd8 17. Nfd4 Kf8 18. Re1 Ne4 19. f3 Nf6 20. Qe2 Qxe2 21. Rxe2 a6 22. Ree1 Nh5 23. Bh2 Bh4 24. Re2 Bf6 25. g4 Bxd4 26. Nxd4 Nf6 27. Nf5 g6 28. Nd6 Rc7 29. Be5 Ke7 30. Nf5+ Ke6 31. Bxc7 Rd7 32. Nd4+ Ke7 33. Be5 Ng8 34. Bh2 Nf6 35. Rb2 g5 36. Nf5+ Ke8 37. Nxh6 Nh7 38. Rd2 Bb5 39. e4 d4 40. Nf5 d3 41. Nd6+ Ke7 42. Nxb5 axb5 43. Rcd1 Nf6 44. Rxd3 Ke6 45. Rxd7 Nxd7 46. Rxd7 Kxd7 47. f4 f6 48. Kf2 Ke6 49. Ke3 Kf7 50. Kd4 Ke6 51. f5+ Kd7 52. e5 fxe5+ 53. Kxe5 Ke7 54. f6+ Kf7 55. Kf5 Kf8 56. Kg6 Ke8 57. f7+ Kf8 58. Bd6# 1-0